bitfinex/quotes_BTCUSD_20240820
["timestamp","ask_amount","ask_price","bid_price","bid_amount"]
[1724192103254,0.08882795,59592.0,59591.0,0.0009042]
[1724192103457,0.08882795,59592.0,59591.0,0.0149042]
[1724192103656,0.25663495,59592.0,59591.0,0.0289042]
[1724192104092,0.31813495,59592.0,59591.0,0.0009042]
[1724192104633,0.31813495,59592.0,59591.0,0.0289042]
[1724192104839,0.31813495,59592.0,59591.0,0.0149042]
[1724192105582,0.01012989,59592.0,59591.0,0.03326694]
[1724192105754,0.01012989,59592.0,59591.0,0.0149042]
[1724192106098,0.17793689,59592.0,59591.0,0.0149042]
[1724192106314,0.17793689,59592.0,59591.0,0.0289042]
[1724192108539,0.01012989,59592.0,59591.0,0.1967142]
[1724192108744,0.33557,59601.0,59591.0,0.1967142]
[1724192108745,0.167787,59600.0,59591.0,0.3645252]
[1724192108941,0.167782,59601.0,59592.0,0.00335561]
[1724192109143,0.306779,59602.0,59598.0,0.16779]
[1724192109377,0.306779,59602.0,59595.0,0.335597]
[1724192109378,0.167782,59601.0,59596.0,0.167793]
[1724192109541,0.167782,59601.0,59597.0,0.167792]
[1724192109747,0.167782,59601.0,59594.0,0.335602]
[1724192109748,0.167786,59600.0,59596.0,0.167796]
[1724192110828,0.16861,59599.0,59597.0,0.01]
[1724192111241,0.16861,59599.0,59596.0,0.011]
[1724192111242,0.000822,59599.0,59596.0,0.011]
[1724192111458,0.56488,59597.0,59596.0,0.011]
[1724192113096,0.56488,59597.0,59596.0,0.021]
[1724192113535,0.167798,59596.0,59591.0,0.1687142]
[1724192114303,0.167798,59596.0,59592.0,0.167807]
[1724192114511,0.1678,59595.0,59591.0,0.0009042]
[1724192114712,0.1678,59595.0,59591.0,0.1687132]
[1724192114936,0.1678,59595.0,59591.0,0.1827132]
[1724192115110,0.01013435,59594.0,59593.0,0.167804]
[1724192115439,0.229294,59597.0,59593.0,0.167804]
[1724192115591,0.01013435,59594.0,59593.0,0.167804]
[1724192115795,0.229294,59597.0,59593.0,0.167804]
[1724192116036,0.01013435,59594.0,59593.0,0.167804]
[1724192116227,0.229294,59597.0,59593.0,0.167804]
[1724192116426,0.01013435,59594.0,59593.0,0.167804]
[1724192116667,0.229294,59597.0,59593.0,0.167804]
[1724192116870,0.01013435,59594.0,59593.0,0.167804]
[1724192117101,0.229294,59597.0,59593.0,0.181804]
[1724192117296,0.01013435,59594.0,59593.0,0.028]
[1724192117499,0.167799,59595.0,59593.0,0.028]
[1724192117738,0.01013435,59594.0,59593.0,0.028]
[1724192117948,0.2992158,59596.0,59592.0,0.167807]
[1724192118079,0.01013435,59595.0,59593.0,0.180804]
[1724192118439,0.01013435,59595.0,59593.0,0.167804]
[1724192119142,0.01013435,59595.0,59591.0,0.1687122]
[1724192119284,0.1381,59594.0,59591.0,0.0009042]
[1724192119484,0.167806,59593.0,59591.0,0.0009042]
[1724192119720,0.167807,59592.0,59591.0,0.0009042]
[1724192119916,0.17793597,59592.0,59591.0,0.0009042]
[1724192120727,0.17875797,59592.0,59591.0,0.0149042]
[1724192120926,0.01095097,59592.0,59591.0,0.0149042]
[1724192121473,0.01095097,59592.0,59591.0,0.0289042]
[1724192121876,0.01095097,59592.0,59591.0,0.1967142]
[1724192124567,0.01095097,59592.0,59591.0,0.5323352]
[1724192127651,0.01090779,59592.0,59591.0,0.5323352]
[1724192130966,0.01090779,59592.0,59591.0,0.63408184]
[1724192131158,0.000822,59592.0,59591.0,1.38222384]
[1724192131539,0.000822,59592.0,59591.0,1.43195812]
[1724192131748,0.000822,59592.0,59591.0,1.43395812]
[1724192132170,0.000822,59592.0,59591.0,1.83138019]
[1724192133224,0.000822,59592.0,59591.0,1.75676818]
[1724192133423,0.000822,59592.0,59591.0,1.75376818]
[1724192135245,0.000822,59592.0,59591.0,1.85325498]
[1724192135457,0.000822,59592.0,59591.0,1.75150834]
[1724192136116,0.000822,59592.0,59591.0,1.65202154]
[1724192136315,0.000822,59592.0,59591.0,1.75150834]
[1724192137769,0.000822,59592.0,59591.0,0.66874534]
[1724192138001,0.168629,59592.0,59591.0,0.0289042]
[1724192138235,0.17874483,59592.0,59591.0,0.0289042]
[1724192138665,0.98667483,59592.0,59591.0,0.0289042]
[1724192138876,0.67734733,59592.0,59591.0,0.0289042]
[1724192139493,1.01296233,59592.0,59591.0,0.0289042]
[1724192141703,0.67734733,59592.0,59591.0,0.0289042]
[1724192142456,0.65105983,59592.0,59591.0,0.0289042]
[1724192145322,0.6773472,59592.0,59591.0,0.0289042]
[1724192145524,0.65105983,59592.0,59591.0,0.0289042]
[1724192152865,0.76815983,59592.0,59591.0,0.0289042]
[1724192154423,0.65105983,59592.0,59591.0,0.0289042]
[1724192156643,0.76815983,59592.0,59591.0,0.0289042]
[1724192157981,1.24043969,59592.0,59591.0,0.0289042]
[1724192158208,1.34043969,59592.0,59591.0,0.0289042]
[1724192158469,1.67605469,59592.0,59591.0,0.0289042]
[1724192159193,1.56567821,59592.0,59591.0,0.0289042]
[1724192159398,1.56567821,59592.0,59591.0,0.0149042]
[1724192159685,1.56567821,59592.0,59591.0,0.0189042]
[1724192159895,1.56567821,59592.0,59591.0,0.0149042]
[1724192160100,1.56567821,59592.0,59591.0,0.0019042]
[1724192160241,1.56567821,59592.0,59591.0,0.0049042]
[1724192160420,1.56567821,59592.0,59591.0,0.0039042]
[1724192160626,1.56567821,59592.0,59591.0,0.0069042]
[1724192160851,1.56567821,59592.0,59591.0,0.0039042]
[1724192161074,1.56567821,59592.0,59591.0,0.0059042]
[1724192161287,1.56567821,59592.0,59591.0,0.0069042]
[1724192162600,1.56567821,59592.0,59591.0,0.0029042]
[1724192162821,1.56567821,59592.0,59591.0,0.0059042]
[1724192162941,1.72224603,59592.0,59591.0,0.0059042]
[1724192163146,1.62224603,59592.0,59591.0,0.0059042]
[1724192163358,1.72224603,59592.0,59591.0,0.0059042]
[1724192163753,1.79567821,59592.0,59591.0,0.0059042]
[1724192163957,2.13229321,59592.0,59591.0,0.0059042]
[1724192164176,2.49290821,59592.0,59591.0,0.0059042]
[1724192164598,1.659344,59589.0,59588.0,0.0009042]
[1724192164797,2.42534316,59589.0,59588.0,0.0009042]
[1724192165016,2.43535087,59589.0,59588.0,0.0009042]
[1724192165231,2.43535087,59589.0,59573.0,0.0009053]
[1724192165232,1.175006,59574.0,59573.0,0.0009053]
[1724192165403,1.46439438,59574.0,59573.0,0.0009053]
[1724192165648,1.58229399,59574.0,59573.0,0.0009053]
[1724192165847,1.5923017,59574.0,59573.0,0.0009053]
[1724192166457,1.7682017,59574.0,59573.0,0.0009053]
[1724192166860,1.7682017,59574.0,59573.0,0.0149053]
[1724192167064,1.76799973,59574.0,59573.0,0.0009053]
[1724192167464,1.76799973,59574.0,59573.0,0.0029053]
[1724192167666,1.76799973,59574.0,59573.0,0.0009053]
[1724192167847,1.76899973,59574.0,59573.0,0.0009053]
[1724192168187,1.76799973,59574.0,59573.0,0.0009053]
[1724192168642,1.76899973,59574.0,59573.0,0.0009053]
[1724192170752,1.76799973,59574.0,59573.0,0.0009053]
[1724192170952,1.79899973,59574.0,59573.0,0.0009053]
[1724192171208,2.13471573,59574.0,59573.0,0.0009053]
[1724192171380,2.15671573,59574.0,59573.0,0.0009053]
[1724192171756,2.15771573,59574.0,59573.0,0.0009053]
[1724192173341,2.15871573,59574.0,59573.0,0.0009053]
[1724192174143,2.15771573,59574.0,59573.0,0.0009053]
[1724192174615,2.16471573,59574.0,59573.0,0.0009053]
[1724192175110,2.16671573,59574.0,59573.0,0.0009053]
[1724192175704,2.16271573,59574.0,59573.0,0.0009053]
[1724192176730,2.15771573,59574.0,59573.0,0.0009053]
[1724192177115,2.16271573,59574.0,59573.0,0.0009053]
[1724192177590,2.15771573,59574.0,59573.0,0.0009053]
[1724192178007,2.16271573,59574.0,59573.0,0.0009053]
[1724192180520,2.16353773,59574.0,59573.0,0.0009053]
[1724192180725,2.50953773,59574.0,59573.0,0.0009053]
[1724192180906,2.84725373,59574.0,59573.0,0.0009053]
[1724192181724,2.84725373,59574.0,59558.0,0.0074074]
[1724192181725,0.293,59559.0,59558.0,0.0074074]
[1724192181921,1.04689905,59559.0,59558.0,0.0074074]
[1724192182045,1.72805054,59559.0,59558.0,0.0074074]
[1724192182994,1.72805054,59559.0,59533.0,0.0603]
[1724192182995,0.16892,59552.0,59533.0,0.0603]
[1724192183201,0.16892,59552.0,59529.0,0.0603]
[1724192183202,0.2,59537.0,59529.0,0.0603]
[1724192183408,0.2,59537.0,59528.0,0.009042]
[1724192183409,0.503929,59532.0,59528.0,0.009042]
[1724192183618,0.839882,59532.0,59528.0,0.009042]
[1724192183758,0.167976,59532.0,59528.0,0.009042]
[1724192183961,0.51337252,59532.0,59528.0,0.009042]
[1724192184165,0.84932552,59532.0,59528.0,0.009042]
[1724192185477,0.85032552,59532.0,59531.0,0.021242]
[1724192185689,1.18627852,59532.0,59531.0,0.021242]
[1724192185893,1.18527852,59532.0,59531.0,0.009242]
[1724192186091,1.18627852,59532.0,59531.0,0.014242]
[1724192186292,1.18727852,59532.0,59531.0,0.021242]
[1724192186579,1.18627852,59532.0,59531.0,0.009242]
[1724192186985,1.18627852,59532.0,59531.0,0.014242]
[1724192186986,1.33420637,59532.0,59531.0,0.014242]
[1724192187204,1.18527852,59532.0,59531.0,0.013242]
[1724192187488,1.18527852,59532.0,59531.0,0.009242]
[1724192187699,0.84932552,59532.0,59531.0,0.009242]
[1724192187906,0.85032552,59532.0,59531.0,0.014242]
[1724192189087,0.84932552,59532.0,59531.0,0.009242]
[1724192189295,0.84932552,59532.0,59531.0,0.013242]
[1724192189500,0.85032552,59532.0,59531.0,0.018242]
[1724192189897,0.84932552,59532.0,59531.0,0.009242]
[1724192190099,0.85132552,59532.0,59531.0,0.018242]
[1724192190593,0.84932552,59532.0,59531.0,0.009242]
[1724192191031,0.85032552,59532.0,59531.0,0.013242]
[1724192191827,0.85032552,59532.0,59531.0,0.018242]
[1724192192052,0.01044352,59532.0,59531.0,0.077242]
[1724192192249,0.083,59547.0,59531.0,0.15770111]
[1724192192250,0.335934,59536.0,59531.0,0.15770111]
[1724192192448,0.167973,59534.0,59531.0,0.159342]
[1724192192699,0.167973,59534.0,59531.0,0.158342]
[1724192192914,0.00912584,59533.0,59531.0,0.331321]
[1724192193144,1e-08,59533.0,59531.0,0.163342]
[1724192193343,0.00760487,59533.0,59531.0,0.154342]
[1724192193545,0.167971,59534.0,59531.0,0.161342]
[1724192193698,0.00760603,59532.0,59531.0,0.170342]
[1724192193901,0.167976,59532.0,59531.0,0.163342]
[1724192194080,0.17558203,59532.0,59531.0,0.163342]
[1724192194301,0.00760603,59532.0,59531.0,0.163342]
[1724192194866,0.167974,59533.0,59531.0,0.163342]
[1724192195019,0.0076386,59532.0,59531.0,0.154342]
[1724192195434,0.0076386,59532.0,59531.0,0.178342]
[1724192195609,0.0076386,59532.0,59531.0,0.166342]
[1724192195809,0.0076386,59532.0,59531.0,0.154342]
[1724192196013,0.0076386,59532.0,59531.0,0.166342]
[1724192196360,0.0086386,59532.0,59531.0,0.178342]
[1724192199029,0.335919,59539.0,59531.0,0.178342]
[1724192199030,0.167952,59541.0,59533.0,0.001]
[1724192199263,0.167952,59541.0,59539.0,0.0808]
[1724192199542,0.49229154,59549.0,59539.0,0.0808]
[1724192199543,0.167954,59540.0,59539.0,0.0808]
[1724192199931,0.503862,59540.0,59539.0,0.0808]
[1724192200130,0.0767,59544.0,59533.0,0.1444]
[1724192200340,0.167976,59532.0,59531.0,0.021242]
[1724192200558,0.0614,59542.0,59531.0,0.021242]
[1724192200751,0.167975,59533.0,59531.0,0.021242]
[1724192200950,0.167976,59532.0,59531.0,0.021242]
[1724192201150,0.503929,59532.0,59531.0,0.021242]
[1724192201360,0.839882,59532.0,59531.0,0.009242]
[1724192202303,0.839882,59532.0,59531.0,0.167642]
[1724192202304,0.503929,59532.0,59531.0,0.167642]
[1724192202503,0.503929,59532.0,59531.0,0.153642]
[1724192202839,0.503929,59532.0,59531.0,0.165642]
[1724192203081,0.335937,59535.0,59531.0,0.165642]
[1724192203082,0.335937,59535.0,59531.0,0.1999094]
[1724192203284,0.33592,59538.0,59531.0,0.344621]
[1724192203685,0.49229154,59550.0,59533.0,0.078]
[1724192203686,0.16797,59535.0,59533.0,0.078]
[1724192204094,0.167965,59536.0,59533.0,0.078]
[1724192204580,0.167971,59534.0,59533.0,0.078]
[1724192205078,0.16796,59538.0,59534.0,0.24597]
[1724192205304,0.335921,59538.0,59534.0,0.078]
[1724192205503,0.16796,59538.0,59534.0,0.245968]
[1724192205714,0.16796,59538.0,59534.0,0.078]
[1724192206129,0.33591,59540.0,59534.0,0.078]
[1724192206130,0.167963,59537.0,59534.0,0.078]
[1724192206318,0.167963,59537.0,59534.0,0.086]
[1724192206523,0.167963,59537.0,59534.0,0.078]
[1724192206725,0.167953,59541.0,59536.0,0.167964]
[1724192207013,0.167954,59540.0,59536.0,0.167964]
[1724192207771,0.167957,59539.0,59536.0,0.167964]
[1724192208477,0.167957,59539.0,59534.0,0.263968]
[1724192208692,0.335895,59543.0,59534.0,0.096]
[1724192208903,0.03,59553.0,59534.0,0.078]
[1724192208904,0.167968,59535.0,59534.0,0.078]
[1724192209325,0.167968,59535.0,59534.0,0.089]
[1724192209547,0.167968,59535.0,59534.0,0.078]
[1724192209763,0.167968,59535.0,59534.0,0.007]
[1724192210017,0.167968,59535.0,59534.0,0.012]
[1724192210237,0.503904,59535.0,59534.0,0.005]
[1724192211144,0.503904,59535.0,59532.0,0.0614]
[1724192211387,0.503904,59535.0,59534.0,0.012]
[1724192211608,0.167965,59537.0,59534.0,0.026]
[1724192211864,0.167965,59536.0,59534.0,0.014]
[1724192212063,0.167965,59536.0,59533.0,0.167971]
[1724192212272,0.167965,59536.0,59534.0,0.011]
[1724192212686,0.167965,59536.0,59532.0,0.229376]
[1724192212903,0.167965,59536.0,59534.0,0.013]
[1724192213115,0.167965,59536.0,59534.0,0.009]
[1724192213319,0.167968,59535.0,59534.0,0.021]
[1724192214148,0.167968,59535.0,59534.0,0.012]
[1724192214559,0.167968,59535.0,59534.0,0.022]
[1724192214993,0.229568,59535.0,59534.0,0.012]
[1724192215201,0.565504,59535.0,59534.0,0.012]
[1724192215424,0.565504,59535.0,59534.0,0.011]
[1724192215624,0.66075819,59535.0,59534.0,0.011]
[1724192215837,0.99669419,59535.0,59534.0,0.011]
[1724192216011,0.92775435,59535.0,59534.0,0.011]
[1724192216876,0.92775435,59535.0,59534.0,0.024]
[1724192217210,1.26369035,59535.0,59534.0,0.024]
[1724192219466,0.86615435,59535.0,59534.0,0.024]
[1724192219863,0.53021835,59535.0,59534.0,0.024]
[1724192220111,0.167968,59535.0,59534.0,0.024]
[1724192220284,0.19428107,59535.0,59534.0,0.024]
[1724192221594,0.02631307,59535.0,59534.0,0.13882263]
[1724192221793,0.168774,59541.0,59537.0,0.167961]
[1724192221992,0.168774,59541.0,59534.0,0.13882263]
[1724192221993,0.000823,59541.0,59538.0,0.167958]
[1724192222596,0.000823,59541.0,59540.0,0.306254]
[1724192223002,0.000823,59541.0,59538.0,0.167958]
[1724192223192,0.000823,59541.0,59539.0,0.167956]
[1724192223634,0.000823,59541.0,59537.0,0.1423]
[1724192223843,0.167954,59540.0,59537.0,0.004]
[1724192224143,0.000823,59541.0,59537.0,0.167962]
[1724192224563,0.168774,59541.0,59540.0,0.007]
[1724192224915,0.168774,59541.0,59540.0,0.016]
[1724192225122,0.168774,59541.0,59540.0,0.009]
[1724192225350,0.168774,59541.0,59537.0,0.174962]
[1724192225579,0.168774,59541.0,59537.0,0.182962]
[1724192225760,0.168774,59541.0,59537.0,0.175962]
[1724192226165,0.168774,59541.0,59540.0,0.015]
[1724192226166,0.000823,59541.0,59540.0,0.015]
[1724192226604,0.000823,59541.0,59540.0,0.007]
[1724192226732,0.168774,59541.0,59540.0,0.007]
[1724192227387,0.168774,59541.0,59537.0,0.175962]
[1724192227756,0.168774,59541.0,59537.0,0.182962]
[1724192228207,0.000823,59541.0,59540.0,0.649362]
[1724192228380,0.000823,59541.0,59540.0,0.648362]
[1724192228861,0.000823,59541.0,59540.0,0.657362]
[1724192229474,0.000823,59541.0,59540.0,0.664362]
[1724192229651,0.000823,59541.0,59540.0,0.678362]
[1724192230700,0.000823,59541.0,59540.0,0.671362]
[1724192230900,0.000823,59541.0,59540.0,0.685362]
[1724192231102,0.000823,59541.0,59540.0,0.037]
[1724192231103,0.168774,59541.0,59540.0,0.037]
[1724192231665,0.000823,59541.0,59540.0,0.037]
[1724192234444,0.000823,59541.0,59540.0,0.204954]
[1724192235896,0.000823,59541.0,59540.0,0.037]
[1724192237812,0.168774,59541.0,59540.0,0.037]
[1724192238443,0.000823,59541.0,59540.0,0.037]
[1724192238613,0.000823,59541.0,59540.0,0.2422458]
[1724192238981,0.000823,59541.0,59540.0,0.7193538]
[1724192239274,0.000823,59541.0,59540.0,0.682062]
[1724192239927,0.000823,59541.0,59540.0,0.346154]
[1724192240332,0.000823,59541.0,59540.0,0.682062]
[1724192241291,0.000823,59541.0,59540.0,0.346154]
[1724192242466,0.000823,59541.0,59540.0,1.01797]
[1724192242894,0.000823,59541.0,59540.0,1.46579422]
[1724192243089,0.000823,59541.0,59540.0,1.46679119]
[1724192243332,0.000823,59541.0,59540.0,1.46579119]
[1724192244384,0.000823,59541.0,59540.0,0.73202859]
[1724192244576,0.000823,59541.0,59540.0,1.06793659]
[1724192244766,0.000823,59541.0,59540.0,1.01797]
[1724192245200,0.000823,59541.0,59540.0,1.06793659]
[1724192245351,0.000823,59541.0,59540.0,1.01797]
[1724192245551,0.000823,59541.0,59540.0,1.0679269]
[1724192245762,0.000823,59541.0,59540.0,1.01797]
[1724192245981,0.000823,59541.0,59540.0,1.06792591]
[1724192246364,0.000823,59541.0,59540.0,1.06792262]
[1724192246546,0.000823,59541.0,59540.0,1.2260956]
[1724192246756,0.000823,59541.0,59540.0,1.17614298]
[1724192247166,0.000823,59541.0,59540.0,1.22609715]
[1724192247368,0.000823,59541.0,59540.0,0.59081617]
[1724192247568,0.000823,59541.0,59540.0,0.540862]
[1724192250007,0.00062083,59541.0,59540.0,0.540862]
[1724192250298,0.00062083,59541.0,59540.0,0.59082094]
[1724192250521,0.00062083,59541.0,59540.0,1.32457778]
[1724192250705,0.00062083,59541.0,59540.0,1.49291161]
[1724192250851,0.00062083,59541.0,59540.0,1.6545295]
[1724192251057,0.00062083,59541.0,59540.0,1.6535295]
[1724192251281,0.00062083,59541.0,59540.0,1.62854767]
[1724192251480,0.00062083,59541.0,59540.0,1.18074878]
[1724192251682,0.00062083,59541.0,59540.0,1.01677]
[1724192253087,0.00062083,59541.0,59540.0,1.06673477]
[1724192253970,0.00062083,59541.0,59540.0,1.06673319]
[1724192255161,0.00062083,59541.0,59540.0,1.01677]
[1724192255589,0.00062083,59541.0,59540.0,1.06673017]
[1724192256382,0.00062083,59541.0,59540.0,1.01677]
[1724192256963,0.00062083,59541.0,59540.0,0.680862]
[1724192257245,0.00062083,59541.0,59540.0,0.540862]
[1724192259310,0.07792083,59541.0,59540.0,0.540862]
[1724192260106,0.24707183,59541.0,59540.0,0.037]
[1724192260322,0.98017583,59541.0,59540.0,0.037]
[1724192260492,1.00648532,59541.0,59540.0,0.037]
[1724192261105,1.34238732,59541.0,59540.0,0.037]
[1724192261954,0.167971,59534.0,59532.0,0.0009053]
[1724192262153,0.1398,59533.0,59532.0,0.0009053]
[1724192263754,0.1398,59533.0,59532.0,0.0149053]
[1724192264160,0.1398,59533.0,59532.0,0.1828813]
[1724192264358,0.0785,59533.0,59532.0,0.1828813]
[1724192264573,0.0617,59536.0,59532.0,0.1828813]
[1724192264574,0.167965,59536.0,59532.0,0.1828813]
[1724192264979,0.167965,59536.0,59532.0,0.1968813]
[1724192265186,0.167965,59536.0,59533.0,0.05002064]
[1724192265384,0.07672083,59541.0,59535.0,0.335936]
[1724192265583,0.07672083,59541.0,59536.0,0.05002064]
[1724192265996,0.07672083,59541.0,59537.0,0.167962]
[1724192265997,0.24467283,59541.0,59537.0,0.167962]
[1724192266371,0.167954,59540.0,59536.0,0.05002064]
[1724192266570,0.167954,59540.0,59536.0,0.21798464]
[1724192267195,0.07672083,59541.0,59537.0,0.167962]
[1724192267600,0.24467383,59541.0,59537.0,0.21798264]
[1724192268301,0.167954,59540.0,59537.0,0.013]
[1724192269151,0.07672083,59541.0,59537.0,0.013]
[1724192269355,0.00062083,59541.0,59540.0,0.503862]
[1724192269871,0.00062083,59541.0,59540.0,0.89082887]
[1724192270079,0.00062083,59541.0,59540.0,0.88982887]
[1724192270281,0.00062083,59541.0,59540.0,0.89082887]
[1724192270487,0.00062083,59541.0,59540.0,1.04651416]
[1724192270698,0.00062083,59541.0,59540.0,1.04551416]
[1724192271074,0.00062083,59541.0,59540.0,1.04651416]
[1724192271303,0.00062083,59541.0,59540.0,0.88982887]
[1724192271935,0.00062083,59541.0,59540.0,0.91782887]
[1724192272919,0.00062083,59541.0,59540.0,1.31573873]
[1724192273324,0.00062083,59541.0,59540.0,0.86777]
[1724192273519,0.00062083,59541.0,59540.0,1.2406517]
[1724192278381,0.00062083,59541.0,59540.0,0.97981168]
[1724192278774,0.00062083,59541.0,59540.0,0.97981372]
[1724192279068,0.00062083,59541.0,59540.0,1.31572172]
[1724192279269,0.00062083,59541.0,59540.0,0.97981372]
[1724192279454,0.08122083,59541.0,59540.0,1.31572172]
[1724192279650,0.14122083,59541.0,59540.0,1.31572172]
[1724192279855,0.14122083,59541.0,59540.0,0.028]
[1724192281005,0.30917183,59541.0,59540.0,0.028]
[1724192281222,0.14122083,59541.0,59540.0,0.028]
[1724192281389,0.00062083,59541.0,59540.0,0.61112748]
[1724192281594,0.00062083,59541.0,59540.0,0.68719621]
[1724192281766,0.00062083,59541.0,59540.0,1.39598983]
[1724192281971,0.00062083,59541.0,59540.0,1.42101275]
[1724192282202,0.00062083,59541.0,59540.0,1.34074727]
[1724192283055,0.00062083,59541.0,59540.0,1.34174727]
[1724192283263,0.00062083,59541.0,59540.0,1.34074727]
[1724192283471,0.00062083,59541.0,59540.0,1.34174727]
[1724192285285,0.00062083,59541.0,59540.0,1.34074727]
[1724192286780,0.00062083,59541.0,59540.0,1.3407357]
[1724192287995,0.00062083,59541.0,59540.0,1.24064772]
[1724192288191,0.00062083,59541.0,59540.0,1.24164772]
[1724192288357,0.00062083,59541.0,59540.0,1.57755572]
[1724192288559,0.00062083,59541.0,59540.0,1.7415345]
[1724192289821,0.00062083,59541.0,59540.0,1.57755572]
[1724192290258,0.00062083,59541.0,59540.0,1.57955572]
[1724192291387,0.00062083,59541.0,59540.0,1.57655572]
[1724192295116,0.00062083,59541.0,59540.0,1.70152048]
[1724192295292,0.00062083,59541.0,59540.0,1.57655572]
[1724192295522,0.00062083,59541.0,59540.0,1.67652]
[1724192297307,0.00062083,59541.0,59540.0,1.67752]
[1724192297483,0.00062083,59541.0,59540.0,1.67652]
[1724192298079,0.00062083,59541.0,59540.0,1.57655572]
[1724192298480,0.00062083,59541.0,59540.0,1.67650128]
[1724192301066,0.00062083,59541.0,59540.0,1.57655572]
[1724192301505,0.00062083,59541.0,59540.0,1.57745241]
[1724192301958,0.00062083,59541.0,59540.0,1.24154441]
[1724192302171,0.00062083,59541.0,59540.0,0.0289042]
[1724192302172,0.14542083,59541.0,59540.0,0.0289042]
[1724192302392,0.31337183,59541.0,59540.0,0.0289042]
[1724192302844,0.14542083,59541.0,59540.0,0.0289042]
[1724192303695,0.14542083,59541.0,59540.0,0.1968582]
[1724192305525,0.14542083,59541.0,59540.0,0.0289042]
[1724192305873,0.14542083,59541.0,59540.0,0.1968582]
[1724192306302,0.14542083,59541.0,59540.0,0.0289042]
[1724192308295,0.14542083,59541.0,59540.0,0.1968582]
[1724192312230,0.14542083,59541.0,59540.0,0.0289042]
[1724192312439,0.14536095,59541.0,59540.0,0.0289042]
[1724192314944,0.14536095,59541.0,59540.0,0.1968582]
[1724192315167,0.00056095,59541.0,59540.0,1.42125176]
[1724192315370,0.00056095,59541.0,59540.0,1.64000519]
[1724192315551,1e-08,59541.0,59540.0,2.30940901]
[1724192315776,1e-08,59541.0,59540.0,2.93138461]
[1724192316618,1e-08,59541.0,59540.0,2.95638461]
[1724192316852,1e-08,59541.0,59540.0,2.94238461]
[1724192317049,1e-08,59541.0,59540.0,2.92838461]
[1724192317459,1e-08,59541.0,59540.0,2.95190831]
[1724192317866,1e-08,59541.0,59540.0,2.92838461]
[1724192318107,1e-08,59541.0,59540.0,2.95638461]
[1724192318253,1e-08,59541.0,59540.0,2.94238461]
[1724192318657,1e-08,59541.0,59540.0,2.95638461]
[1724192319208,1e-08,59541.0,59540.0,2.94238461]
[1724192319389,1e-08,59541.0,59540.0,2.92838461]
[1724192319793,1e-08,59541.0,59540.0,2.94238461]
[1724192320407,1e-08,59541.0,59540.0,2.95638461]
[1724192320964,1e-08,59541.0,59540.0,2.95538461]
[1724192321171,1e-08,59541.0,59540.0,2.85491505]
[1724192321394,1e-08,59541.0,59540.0,2.68921505]
[1724192321601,1e-08,59541.0,59540.0,2.83916147]
[1724192321808,1e-08,59541.0,59540.0,2.91616147]
[1724192322017,1e-08,59541.0,59540.0,2.73921505]
[1724192322187,1e-08,59541.0,59540.0,2.99759383]
[1724192322769,1e-08,59541.0,59540.0,3.02059383]
[1724192325087,0.16789,59563.0,59540.0,3.02059383]
[1724192325088,0.1389,59563.0,59556.0,0.003]
[1724192325359,0.49229154,59565.0,59564.0,0.839432]
[1724192325807,0.077,59566.0,59565.0,0.50365]
[1724192325815,0.000822,59574.0,59564.0,0.335773]
[1724192326058,0.000822,59574.0,59568.0,0.503625]
[1724192326059,0.077,59569.0,59568.0,0.503625]
[1724192326319,0.077,59569.0,59568.0,0.839375]
[1724192326522,0.077,59569.0,59568.0,0.503625]
[1724192327800,0.077,59569.0,59568.0,0.531625]
[1724192328223,0.077,59569.0,59568.0,0.181875]
[1724192328400,0.1386,59569.0,59568.0,0.181875]
[1724192328631,0.1386,59569.0,59568.0,0.195875]
[1724192328828,0.1386,59569.0,59568.0,0.181875]
[1724192329141,0.1386,59569.0,59568.0,0.531625]
[1724192329608,0.1386,59569.0,59568.0,0.028]
[1724192329770,0.1386,59569.0,59568.0,0.014]
[1724192329771,0.2558,59569.0,59568.0,0.014]
[1724192329970,0.2558,59569.0,59558.0,0.4771]
[1724192329971,0.0807,59568.0,59558.0,0.4771]
[1724192330174,0.2621,59559.0,59558.0,0.4771]
[1724192330381,0.43,59559.0,59558.0,0.4771]
[1724192330967,0.43,59559.0,59554.0,0.167913]
[1724192330968,0.167904,59558.0,59554.0,0.167913]
[1724192331183,0.0807,59557.0,59554.0,0.167913]
[1724192331627,0.167904,59558.0,59548.0,0.335859]
[1724192331628,0.0642,59554.0,59548.0,0.335859]
[1724192331836,0.0807,59552.0,59549.0,0.167928]
[1724192332305,0.0807,59552.0,59550.0,0.167925]
[1724192332903,0.0807,59552.0,59551.0,0.00020214]
[1724192334181,0.0807,59552.0,59551.0,0.16812514]
[1724192334993,0.0807,59552.0,59551.0,0.01320214]
[1724192334994,0.31322,59552.0,59551.0,0.01320214]
[1724192335196,0.1453,59552.0,59551.0,0.01320214]
[1724192335549,0.1453,59552.0,59551.0,0.02720214]
[1724192335791,0.1453,59552.0,59551.0,0.01320214]
[1724192336207,0.146122,59552.0,59551.0,0.02720214]
[1724192336627,0.146122,59552.0,59551.0,0.01420214]
[1724192337252,0.146122,59552.0,59551.0,0.02720214]
[1724192339109,0.649882,59552.0,59551.0,0.02720214]
[1724192340925,0.985722,59552.0,59551.0,0.02720214]
[1724192341124,0.649882,59552.0,59551.0,0.02720214]
[1724192342630,0.146122,59552.0,59551.0,0.02720214]
[1724192342835,0.314042,59552.0,59551.0,0.02720214]
[1724192344190,0.649882,59552.0,59551.0,0.02720214]
[1724192344392,0.985722,59552.0,59551.0,0.02720214]
[1724192346359,1.321562,59552.0,59551.0,0.02720214]
[1724192347683,1.34786978,59552.0,59551.0,0.02720214]
[1724192347856,1.48265676,59552.0,59551.0,0.02720214]
[1724192348195,1.58265676,59552.0,59551.0,0.02720214]
[1724192349052,1.59202104,59552.0,59551.0,0.01320214]
[1724192349305,1.59202104,59552.0,59551.0,0.01420214]
[1724192349553,1.59202104,59552.0,59551.0,0.00120214]
[1724192349806,1.59202104,59552.0,59551.0,0.00320214]
[1724192350310,1.59202104,59552.0,59551.0,0.00120214]
[1724192350548,1.59302104,59552.0,59551.0,0.00120214]
[1724192353290,1.45823406,59552.0,59551.0,0.00120214]
[1724192356926,1.79407406,59552.0,59551.0,0.00120214]